fUSD/lending_fUSD_20250217
["ID","MTS","AMOUNT","RATE_DAILY","PERIOD"]
[353370034,1739801469954,-1697.94,0.00013945,2]
[353370035,1739801469964,-500.0,0.00013945,2]
[353370036,1739801469973,-500.0,0.00013945,2]
[353370037,1739801469984,-895.07,0.00013945,2]
[353370038,1739801469994,-500.0,0.00013945,2]
[353370039,1739801470004,-500.0,0.00013945,2]
[353370040,1739801470013,-500.0,0.00013945,2]
[353370041,1739801470023,-500.0,0.00013945,2]
[353370042,1739801470032,-500.0,0.00013945,2]
[353370043,1739801470041,-1494.02,0.00013945,2]
[353370044,1739801470052,-902.2,0.00013945,2]
[353370045,1739801470062,-500.0,0.00013945,2]
[353370046,1739801470072,-500.0,0.00013945,2]
[353370047,1739801470081,-1362.88,0.00013945,2]
[353370048,1739801470090,-500.0,0.00013945,2]
[353370049,1739801470100,-500.0,0.00013945,2]
[353370050,1739801470109,-693.68,0.00013945,2]
[353370051,1739801470119,-500.0,0.00013945,2]
[353370052,1739801470128,-814.96,0.00013945,2]
[353370053,1739801470137,-1086.38,0.00013945,2]
[353370054,1739801470147,-849.51,0.00013945,2]
[353370055,1739801470157,-500.0,0.00013945,2]
[353370056,1739801470166,-500.0,0.00013945,2]
[353370057,1739801470175,-1037.87,0.00013945,2]
[353370058,1739801470185,-500.0,0.00013945,2]
[353370059,1739801470194,-500.0,0.00013945,2]
[353370060,1739801470203,-500.0,0.00013945,2]
[353370061,1739801470212,-1401.2,0.00013945,2]
[353370062,1739801470222,-199.56202683,0.00013945,2]
[353370063,1739801470232,-500.0,0.00013945,2]
[353370064,1739801470242,-774.28,0.00013945,2]
[353370065,1739801470252,-500.0,0.00013945,2]
[353370066,1739801470261,-500.0,0.00013945,2]
[353370067,1739801470271,-1524.64,0.00013945,2]
[353370068,1739801470280,-500.0,0.00013945,2]
[353370069,1739801470290,-1007.95,0.00013945,2]
[353370070,1739801470299,-500.0,0.00013945,2]
[353370071,1739801470313,-500.0,0.00013945,2]
[353370072,1739801470322,-500.0,0.00013945,2]
[353370073,1739801470332,-900.55,0.00013945,2]
[353370074,1739801470342,-500.0,0.00013945,2]
[353370075,1739801470351,-500.0,0.00013945,2]
[353370076,1739801470361,-1381.54,0.00013945,2]
[353370077,1739801470370,-500.0,0.00013945,2]
[353370078,1739801470383,-500.0,0.00013945,2]
[353370079,1739801470392,-500.0,0.00013945,2]
[353370080,1739801470403,-500.0,0.00013945,2]
[353370081,1739801470413,-500.0,0.00013945,2]
[353370082,1739801470423,-570.64,0.00013945,2]
[353370083,1739801470432,-814.34,0.00013945,2]
[353370084,1739801470442,-500.0,0.00013945,2]
[353370085,1739801470451,-500.0,0.00013945,2]
[353370086,1739801470461,-1012.88,0.00013945,2]
[353370087,1739801470471,-1037.56,0.00013945,2]
[353370088,1739801470480,-817.76,0.00013945,2]
[353370089,1739801470490,-500.0,0.00013945,2]
[353370090,1739801470500,-795.08,0.00013945,2]
[353370091,1739801470509,-995.98,0.00013945,2]
[353370092,1739801470519,-667.8,0.00013945,2]
[353370093,1739801470529,-1140.57,0.00013945,2]
[353370094,1739801470539,-500.0,0.00013945,2]
[353370095,1739801470549,-1488.19,0.00013945,2]
[353370096,1739801470562,-500.0,0.00013945,2]
[353370097,1739801470571,-500.0,0.00013945,2]
[353370098,1739801470581,-826.86,0.00013945,2]
[353370099,1739801470590,-500.0,0.00013945,2]
[353370100,1739801470599,-500.0,0.00013945,2]
[353370101,1739801470608,-749.68,0.00013945,2]
[353370102,1739801470618,-500.0,0.00013945,2]
[353370103,1739801470627,-500.0,0.00013945,2]
[353370104,1739801470637,-500.0,0.00013945,2]
[353370105,1739801470646,-779.56,0.00013945,2]
[353370106,1739801470655,-500.0,0.00013945,2]
[353370107,1739801470664,-500.0,0.00013945,2]
[353370108,1739801470674,-617.29,0.00013945,2]
[353370109,1739801470683,-1280.69,0.00013945,2]
[353370110,1739801470692,-678.5,0.00013945,2]
[353370111,1739801470701,-500.0,0.00013945,2]
[353370112,1739801470710,-500.0,0.00013945,2]
[353370113,1739801470719,-500.0,0.00013945,2]
[353370114,1739801470729,-500.0,0.00013945,2]
[353370115,1739801470740,-728.75,0.00013945,2]
[353370116,1739801470750,-510.47,0.00013945,2]
[353370117,1739801470759,-500.0,0.00013945,2]
[353370118,1739801470770,-500.0,0.00013945,2]
[353370119,1739801470780,-789.35,0.00013945,2]
[353370120,1739801470790,-636.21,0.00013945,2]
[353370121,1739801470799,-500.0,0.00013945,2]
[353370122,1739801470811,-500.0,0.00013945,2]
[353370123,1739801470822,-1073.96,0.00013945,2]
[353370124,1739801470831,-500.0,0.00013945,2]
[353370125,1739801470840,-500.0,0.00013945,2]
[353370126,1739801470849,-552.0818272,0.00013945,2]
[353370127,1739801470858,-500.0,0.00013945,2]
[353370128,1739801470869,-1089.45,0.00013945,2]
[353370129,1739801470879,-1354.53,0.00013945,2]
[353370130,1739801470889,-512.61,0.00013945,2]
[353370131,1739801470903,-500.0,0.00013945,2]
[353370132,1739801470913,-793.08,0.00013945,2]
[353370133,1739801470923,-500.0,0.00013945,2]
[353370134,1739801470935,-500.0,0.00013945,2]
[353370135,1739801470945,-904.7,0.00013945,2]
[353370136,1739801470955,-500.0,0.00013945,2]
[353370137,1739801470964,-804.95,0.00013945,2]
[353370138,1739801470974,-500.0,0.00013945,2]
[353370139,1739801470985,-500.0,0.00013945,2]
[353370140,1739801470995,-677.75,0.00013945,2]
[353370141,1739801471005,-1505.74,0.00013945,2]
[353370142,1739801471015,-500.0,0.00013945,2]
[353370143,1739801471027,-500.0,0.00013945,2]
[353370144,1739801471037,-1233.4,0.00013945,2]
[353370145,1739801471048,-500.0,0.00013945,2]
[353370146,1739801471065,-500.0,0.00013945,2]
[353370147,1739801471075,-1099.48,0.00013945,2]
[353370148,1739801471085,-551.18,0.00013945,2]
[353370149,1739801471095,-500.0,0.00013945,2]
[353370150,1739801471105,-500.0,0.00013945,2]
[353370151,1739801471114,-1576.92,0.00013945,2]
[353370152,1739801471124,-1016.16,0.00013945,2]
[353370153,1739801471135,-500.0,0.00013945,2]
[353370154,1739801471144,-1372.68,0.00013945,2]
[353370155,1739801471155,-522.88,0.00013945,2]
[353370156,1739801471165,-500.0,0.00013945,2]
[353370157,1739801471175,-707.2,0.00013945,2]
[353370158,1739801471185,-500.0,0.00013945,2]
[353370159,1739801471195,-500.0,0.00013945,2]
[353370160,1739801471205,-609.9,0.00013945,2]
[353370161,1739801471215,-735.73,0.00013945,2]
[353370162,1739801471224,-500.0,0.00013945,2]
[353370163,1739801471234,-1497.41,0.00013945,2]
[353370164,1739801471244,-995.21,0.00013945,2]
[353370165,1739801471254,-500.0,0.00013945,2]
[353370166,1739801471264,-500.0,0.00013945,2]
[353370167,1739801471274,-500.0,0.00013945,2]
[353370168,1739801471284,-500.0,0.00013945,2]
[353370169,1739801471294,-500.0,0.00013945,2]
[353370170,1739801471308,-500.0,0.00013945,2]
[353370171,1739801471318,-500.0,0.00013945,2]
[353370172,1739801471328,-1263.18,0.00013945,2]
[353370173,1739801471339,-500.0,0.00013945,2]
[353370174,1739801471348,-500.0,0.00013945,2]
[353370175,1739801471359,-500.0,0.00013945,2]
[353370176,1739801471369,-500.0,0.00013945,2]
[353370177,1739801471379,-1358.71,0.00013945,2]
[353370178,1739801471390,-500.0,0.00013945,2]
[353370179,1739801471400,-895.94,0.00013945,2]
[353370180,1739801471410,-500.0,0.00013945,2]
[353370181,1739801471419,-799.61,0.00013945,2]
[353370182,1739801471429,-736.85,0.00013945,2]
[353370183,1739801471439,-500.0,0.00013945,2]
[353370184,1739801471448,-996.91,0.00013945,2]
[353370185,1739801471457,-500.0,0.00013945,2]
[353370186,1739801471467,-500.0,0.00013945,2]
[353370187,1739801471476,-500.0,0.00013945,2]
[353370188,1739801471486,-615.54,0.00013945,2]
[353370189,1739801471496,-500.0,0.00013945,2]
[353370190,1739801471506,-1352.58,0.00013945,2]
[353370191,1739801471516,-500.0,0.00013945,2]
[353370192,1739801471525,-689.3,0.00013945,2]
[353370193,1739801471534,-500.0,0.00013945,2]
[353370194,1739801471543,-874.71,0.00013945,2]
[353370195,1739801471556,-500.0,0.00013945,2]
[353370196,1739801471566,-500.0,0.00013945,2]
[353370197,1739801471575,-500.0,0.00013945,2]
[353370198,1739801471584,-500.0,0.00013945,2]
[353370199,1739801471593,-500.0,0.00013945,2]
[353370200,1739801471603,-500.0,0.00013945,2]
[353370201,1739801471612,-571.34,0.00013945,2]
[353370202,1739801471621,-577.68,0.00013945,2]
[353370203,1739801471631,-500.0,0.00013945,2]
[353370204,1739801471640,-500.0,0.00013945,2]
[353370205,1739801471650,-500.0,0.00013945,2]
[353370206,1739801471659,-1404.31,0.00013945,2]
[353370207,1739801471669,-500.0,0.00013945,2]
[353370208,1739801471678,-1086.88,0.00013945,2]
[353370209,1739801471688,-500.0,0.00013945,2]
[353370210,1739801471698,-500.0,0.00013945,2]
[353370211,1739801471708,-779.67,0.00013945,2]
[353370212,1739801471718,-500.0,0.00013945,2]
[353370213,1739801471728,-1370.25,0.00013945,2]
[353370214,1739801471737,-500.0,0.00013945,2]
[353370215,1739801471746,-500.0,0.00013945,2]
[353370216,1739801471756,-500.0,0.00013945,2]
[353370217,1739801471765,-500.0,0.00013945,2]
[353370218,1739801471774,-899.75,0.00013945,2]
[353370219,1739801471783,-500.0,0.00013945,2]
[353370220,1739801471793,-729.47,0.00013945,2]
[353370221,1739801471805,-500.0,0.00013945,2]
[353370222,1739801471814,-1609.9,0.00013945,2]
[353370223,1739801471823,-445.30875416,0.00013945,2]
[353370224,1739801471833,-500.0,0.00013945,2]
[353370225,1739801471842,-924.3,0.00013945,2]
[353370226,1739801471851,-500.0,0.00013945,2]
[353370227,1739801471861,-500.0,0.00013945,2]
[353370228,1739801471871,-1589.54,0.00013945,2]
[353370229,1739801471880,-500.0,0.00013945,2]
[353370230,1739801471890,-561.41,0.00013945,2]
[353370231,1739801471899,-505.64610049,0.00013945,2]
[353370232,1739801471911,-648.32,0.00013945,2]
[353370233,1739801471921,-518.04,0.00013945,2]
[353370234,1739801471931,-1627.78,0.00013945,2]
[353370235,1739801471940,-920.09,0.00013945,2]
[353370236,1739801471950,-500.0,0.00013945,2]
[353370237,1739801471961,-759.19,0.00013945,2]
[353370238,1739801471971,-611.0,0.00013945,2]
[353370239,1739801471980,-500.0,0.00013945,2]
[353370240,1739801471991,-1705.38,0.00013945,2]
[353370241,1739801472000,-500.0,0.00013945,2]
[353370242,1739801472010,-1554.86,0.00013945,2]
[353370243,1739801472020,-500.0,0.00013945,2]
[353370244,1739801472029,-1089.32,0.00013945,2]
[353370245,1739801472039,-1015.89,0.00013945,2]
[353370246,1739801472048,-988.26,0.00013945,2]
[353370247,1739801472061,-500.0,0.00013945,2]
[353370248,1739801472070,-508.37500325,0.00013945,2]
[353370249,1739801472080,-500.0,0.00013945,2]
[353370250,1739801472089,-500.0,0.00013945,2]
[353370251,1739801472098,-500.0,0.00013945,2]
[353370252,1739801472107,-1661.51,0.00013945,2]
[353370253,1739801472117,-941.79,0.00013945,2]
[353370254,1739801472126,-1078.44,0.00013945,2]
[353370255,1739801472135,-500.0,0.00013945,2]
[353370256,1739801472145,-500.0,0.00013945,2]
[353370257,1739801472155,-500.0,0.00013945,2]
[353370258,1739801472164,-500.0,0.00013945,2]
[353370259,1739801472326,-1384.93,0.00013945,2]
[353370260,1739801472336,-500.0,0.00013945,2]
[353370261,1739801472345,-1471.5,0.00013945,2]
[353370262,1739801472356,-500.0,0.00013945,2]
[353370263,1739801472365,-500.0,0.00013945,2]
[353370264,1739801472374,-500.0,0.00013945,2]
[353370265,1739801472383,-500.0,0.00013945,2]
[353370266,1739801472391,-500.0,0.00013945,2]
[353370267,1739801472401,-500.0,0.00013945,2]
[353370268,1739801472410,-691.12,0.00013945,2]
[353370269,1739801472420,-1651.32,0.00013945,2]
[353370270,1739801472429,-998.65,0.00013945,2]
[353370271,1739801472439,-500.0,0.00013945,2]
[353370272,1739801472448,-500.0,0.00013945,2]
[353370273,1739801472458,-500.0,0.00013945,2]
[353370274,1739801472467,-1625.12,0.00013945,2]
[353370275,1739801472477,-1120.48,0.00013945,2]
[353370276,1739801472486,-500.0,0.00013945,2]
[353370277,1739801472496,-500.0,0.00013945,2]
[353370278,1739801472505,-1145.67,0.00013945,2]
[353370279,1739801472515,-1045.54,0.00013945,2]
[353370280,1739801472525,-500.0,0.00013945,2]
[353370281,1739801472535,-500.0,0.00013945,2]
[353370282,1739801472545,-500.0,0.00013945,2]
[353370283,1739801472557,-653.46,0.00013945,2]
[353370284,1739801472566,-1571.07,0.00013945,2]
[353370285,1739801472575,-1041.19,0.00013945,2]
[353370286,1739801472585,-500.0,0.00013945,2]
[353370287,1739801472595,-1254.62,0.00013945,2]
[353370288,1739801472604,-1917.02,0.00013945,2]
[353370289,1739801472613,-3247.67,0.00013945,2]
[353370290,1739801472622,-500.0,0.00013945,2]
[353370291,1739801472631,-500.0,0.00013945,2]
[353370292,1739801472641,-507.90463653,0.00013945,2]
[353370293,1739801472649,-1682.9,0.00013945,2]
[353370294,1739801472659,-500.0,0.00013945,2]
[353370295,1739801472668,-500.0,0.00013945,2]
[353370296,1739801472677,-1495.97,0.00013945,2]
[353370297,1739801472686,-3387.61,0.00013945,2]
[353370298,1739801472696,-500.0,0.00013945,2]
[353370299,1739801472705,-842.09,0.00013945,2]
[353370300,1739801472715,-1165.09,0.00013945,2]
[353370301,1739801472724,-570.11,0.00013945,2]
[353370302,1739801472733,-1714.58,0.00013945,2]
[353370303,1739801472742,-1795.35,0.00013945,2]
[353370304,1739801472752,-500.0,0.00013945,2]
[353370305,1739801472761,-628.27,0.00013945,2]
[353370306,1739801472771,-1544.97,0.00013945,2]
[353370307,1739801472780,-471.89028678,0.00013945,2]
[353370308,1739801472790,-790.0,0.00013945,2]
[353370309,1739801472800,-1177.99,0.00013945,2]
[353370310,1739801472812,-940.94,0.00013945,2]
[353370311,1739801472821,-613.82,0.00013945,2]
[353370312,1739801472830,-564.31,0.00013945,2]
[353370313,1739801472839,-2317.59,0.00013945,2]
[353370314,1739801472848,-500.0,0.00013945,2]
[353370315,1739801472858,-1517.67,0.00013945,2]
[353370316,1739801472867,-1922.5,0.00013945,2]
[353370317,1739801472876,-500.0,0.00013945,2]
[353370318,1739801472885,-500.0,0.00013945,2]
[353370319,1739801472898,-1385.84,0.00013945,2]
[353370320,1739801472907,-546.98,0.00013945,2]
[353370321,1739801472916,-531.03,0.00013945,2]
[353370322,1739801472926,-1618.7,0.00013945,2]
[353370323,1739801472937,-500.0,0.00013945,2]
[353370324,1739801472947,-500.0,0.00013945,2]
[353370325,1739801472957,-1661.49,0.00013945,2]
[353370326,1739801472966,-1003.49,0.00013945,2]
[353370327,1739801472975,-3314.57,0.00013945,2]
[353370328,1739801472987,-724.51,0.00013945,2]
[353370329,1739801472996,-500.0,0.00013945,2]
[353370330,1739801473005,-2160.75,0.00013945,2]
[353370331,1739801473015,-1676.7,0.00013945,2]
[353370332,1739801473024,-884.56,0.00013945,2]
[353370333,1739801473034,-500.0,0.00013945,2]
[353370334,1739801473043,-2179.93,0.00013945,2]
[353370335,1739801473051,-500.0,0.00013945,2]
[353370336,1739801473061,-500.0,0.00013945,2]
[353370337,1739801473072,-2493.84,0.00013945,2]
[353370338,1739801473081,-660.98,0.00013945,2]
[353370339,1739801473090,-1692.41,0.00013945,2]
[353370340,1739801473099,-500.0,0.00013945,2]
[353370341,1739801473109,-500.0,0.00013945,2]
[353370342,1739801473118,-500.0,0.00013945,2]
[353370343,1739801473127,-805.83,0.00013945,2]
[353370344,1739801473136,-500.0,0.00013945,2]
[353370345,1739801473145,-1046.36,0.00013945,2]
[353370346,1739801473155,-500.0,0.00013945,2]
[353370347,1739801473164,-500.0,0.00013945,2]
[353370348,1739801473173,-2179.25,0.00013945,2]
[353370349,1739801473183,-784.27,0.00013945,2]
[353370350,1739801473191,-1091.69,0.00013945,2]
[353370351,1739801473200,-500.0,0.00013945,2]
[353370352,1739801473209,-500.0,0.00013945,2]
[353370353,1739801473218,-500.0,0.00013945,2]
[353370354,1739801473228,-628.98141514,0.00013945,2]
[353370355,1739801473237,-544.98,0.00013945,2]
[353370356,1739801473247,-602.77,0.00013945,2]
[353370357,1739801473256,-1829.18,0.00013945,2]
[353370358,1739801473265,-1196.54,0.00013945,2]
[353370359,1739801473274,-500.0,0.00013945,2]
[353370360,1739801473283,-500.0,0.00013945,2]
[353370361,1739801473293,-2436.71,0.00013945,2]
[353370362,1739801473302,-1986.17,0.00013945,2]
[353370363,1739801473312,-2285.63,0.00013945,2]
[353370364,1739801473321,-500.0,0.00013945,2]
[353370365,1739801473330,-500.0,0.00013945,2]
[353370366,1739801473340,-725.18,0.00013945,2]
[353370367,1739801473349,-1529.57,0.00013945,2]
[353370368,1739801473359,-500.0,0.00013945,2]
[353370369,1739801473369,-2059.28,0.00013945,2]
[353370370,1739801473378,-738.76,0.00013945,2]
[353370371,1739801473387,-2080.47,0.00013945,2]
[353370372,1739801473398,-500.0,0.00013945,2]
[353370373,1739801473408,-3621.76,0.00013945,2]
[353370374,1739801473419,-372.86544063,0.00013945,2]
[353370375,1739801473428,-1554.87,0.00013945,2]
[353370376,1739801473437,-500.0,0.00013945,2]
[353370377,1739801473447,-538.32,0.00013945,2]
[353370378,1739801473456,-500.0,0.00013945,2]
[353370379,1739801473466,-3088.56,0.00013945,2]
[353370380,1739801473475,-994.95,0.00013945,2]
[353370381,1739801473484,-2511.48,0.00013945,2]
[353370382,1739801473493,-500.0,0.00013945,2]
[353370383,1739801473503,-500.0,0.00013945,2]
[353370384,1739801473512,-1792.75,0.00013945,2]
[353370385,1739801473522,-500.0,0.00013945,2]
[353370386,1739801473531,-2492.77,0.00013945,2]
[353370387,1739801473540,-1922.39,0.00013945,2]
[353370388,1739801473549,-716.09,0.00013945,2]
[353370389,1739801473560,-500.0,0.00013945,2]
[353370390,1739801473569,-2447.91,0.00013945,2]
[353370391,1739801473579,-1811.82,0.00013945,2]
[353370392,1739801473587,-500.0,0.00013945,2]
[353370393,1739801473596,-1621.19,0.00013945,2]
[353370394,1739801473606,-2234.88,0.00013945,2]
[353370395,1739801473615,-558.06,0.00013945,2]
[353370396,1739801473624,-500.77,0.00013945,2]
[353370397,1739801473633,-2154.46,0.00013945,2]
[353370398,1739801473642,-714.38,0.00013945,2]
[353370399,1739801473651,-3801.26,0.00013945,2]
[353370400,1739801473660,-2866.82,0.00013945,2]
[353370401,1739801473670,-500.0,0.00013945,2]
[353370402,1739801473680,-542.39,0.00013945,2]
[353370403,1739801473689,-4526.39,0.00013945,2]
[353370404,1739801473699,-1995.28,0.00013945,2]
[353370405,1739801473708,-2877.66,0.00013945,2]
[353370406,1739801473718,-1428.61,0.00013945,2]
[353370407,1739801473728,-2559.61,0.00013945,2]
[353370408,1739801473739,-3065.09,0.00013945,2]
[353370409,1739801473749,-1200.0,0.00013945,2]
[353370410,1739801473758,-7282.2,0.00013945,2]
[353370411,1739801473768,-500.0,0.00013945,2]
[353370412,1739801473778,-1230.8,0.00013945,2]
[353370413,1739801473788,-500.0,0.00013945,2]
[353370414,1739801473798,-1753.24,0.00013945,2]
[353370415,1739801473811,-2564.01,0.00013945,2]
[353370416,1739801473821,-2402.32,0.00013945,2]
[353370417,1739801473830,-2640.05,0.00013945,2]
[353370418,1739801473840,-858.88,0.00013945,2]
[353370419,1739801473849,-2789.65,0.00013945,2]
[353370420,1739801473859,-1078.97,0.00013945,2]
[353370421,1739801473869,-150.47477529,0.00013945,2]
[353370422,1739801473878,-500.0,0.00013945,2]
[353370423,1739801473887,-9600.35,0.00013945,2]
[353370424,1739801473897,-500.0,0.00013945,2]
[353370425,1739801473906,-1718.98,0.00013945,2]
[353370426,1739801473919,-3198.48,0.00013945,2]
[353370427,1739801473929,-3079.3,0.00013945,2]
[353370428,1739801473938,-2892.99,0.00013945,2]
[353370429,1739801473947,-1447.04,0.00013945,2]
[353370430,1739801473957,-2486.67,0.00013945,2]
[353370431,1739801473966,-500.0,0.00013945,2]
[353370432,1739801473975,-1855.18,0.00013945,2]
[353370433,1739801473985,-500.0,0.00013945,2]
[353370434,1739801473994,-1637.22,0.00013945,2]
[353370435,1739801474004,-500.0,0.00013945,2]
[353370436,1739801474014,-500.0,0.00013945,2]
[353370437,1739801474022,-7110.24,0.00013945,2]
[353370438,1739801474032,-500.0,0.00013945,2]
[353370439,1739801474042,-1201.92,0.00013945,2]
[353370440,1739801474051,-693.87,0.00013945,2]
[353370441,1739801474065,-3365.03,0.00013945,2]
[353370442,1739801474075,-2154.73,0.00013945,2]
[353370443,1739801474084,-618.8,0.00013945,2]
[353370444,1739801474094,-500.0,0.00013945,2]
[353370445,1739801474103,-2320.84,0.00013945,2]
[353370446,1739801474112,-500.0,0.00013945,2]
[353370447,1739801474122,-500.0,0.00013945,2]
[353370448,1739801474131,-3780.63,0.00013945,2]
[353370449,1739801474140,-500.0,0.00013945,2]
[353370450,1739801474150,-3137.25,0.00013945,2]
[353370451,1739801474160,-2557.5,0.00013945,2]
[353370452,1739801474170,-500.0,0.00013945,2]
[353370453,1739801474179,-677.96,0.00013945,2]
[353370454,1739801474189,-1059.73,0.00013945,2]
[353370455,1739801474198,-895.61,0.00013945,2]
[353370456,1739801474208,-500.0,0.00013945,2]
[353370457,1739801474217,-1771.85,0.00013945,2]
[353370458,1739801474226,-1468.5,0.00013945,2]
[353370459,1739801474235,-749.05,0.00013945,2]
[353370460,1739801474244,-500.0,0.00013945,2]
[353370461,1739801474255,-664.12,0.00013945,2]
[353370462,1739801474265,-1520.33,0.00013945,2]
[353370463,1739801474275,-3852.61,0.00013945,2]
[353370464,1739801474284,-2769.08,0.00013945,2]
[353370465,1739801474293,-500.0,0.00013945,2]
[353370466,1739801474302,-783.84,0.00013945,2]
[353370467,1739801474315,-578.59,0.00013945,2]
[353370468,1739801474324,-2952.47,0.00013945,2]
[353370469,1739801474334,-500.0,0.00013945,2]
[353370470,1739801474343,-500.0,0.00013945,2]
[353370471,1739801474352,-500.0,0.00013945,2]
[353370472,1739801474361,-2064.67,0.00013945,2]
[353370473,1739801474371,-830.43,0.00013945,2]
[353370474,1739801474380,-2439.69,0.00013945,2]
[353370475,1739801474389,-2585.95,0.00013945,2]
[353370476,1739801474399,-255.38882837,0.00013945,2]
[353370477,1739801474408,-1229.24,0.00013945,2]
[353370478,1739801474418,-1538.55,0.00013945,2]
[353370479,1739801474427,-796.95,0.00013945,2]
[353370480,1739801474436,-571.93,0.00013945,2]
[353370481,1739801474446,-3960.62,0.00013945,2]
[353370482,1739801474455,-3733.58,0.00013945,2]
[353370483,1739801474463,-500.0,0.00013945,2]
[353370484,1739801474473,-1102.81,0.00013945,2]
[353370485,1739801474482,-2136.58,0.00013945,2]
[353370486,1739801474491,-1657.46,0.00013945,2]
[353370487,1739801474501,-2012.57,0.00013945,2]
[353370488,1739801474510,-500.0,0.00013945,2]
[353370489,1739801474519,-2000.56,0.00013945,2]
[353370490,1739801474530,-1032.25,0.00013945,2]
[353370491,1739801474540,-2463.4,0.00013945,2]
[353370492,1739801474549,-500.0,0.00013945,2]
[353370493,1739801474561,-2514.53,0.00013945,2]
[353370494,1739801474570,-597.23,0.00013945,2]
[353370495,1739801474580,-500.0,0.00013945,2]
[353370496,1739801474589,-2283.35,0.00013945,2]
[353370497,1739801474599,-500.0,0.00013945,2]
[353370498,1739801474609,-1150.36,0.00013945,2]
[353370499,1739801474618,-500.0,0.00013945,2]
[353370500,1739801474627,-685.11,0.00013945,2]
[353370501,1739801474637,-2343.68,0.00013945,2]
[353370502,1739801474646,-1619.98,0.00013945,2]
[353370503,1739801474656,-715.77,0.00013945,2]
[353370504,1739801474665,-1465.32,0.00013945,2]
[353370505,1739801474674,-500.0,0.00013945,2]
[353370506,1739801474685,-2824.39,0.00013945,2]
[353370507,1739801474695,-548.48,0.00013945,2]
[353370508,1739801474704,-706.69,0.00013945,2]
[353370509,1739801474714,-2612.64,0.00013945,2]
[353370510,1739801474724,-4616.83,0.00013945,2]
[353370511,1739801474733,-1806.32,0.00013945,2]
[353370512,1739801474742,-2864.85,0.00013945,2]
[353370513,1739801474751,-1552.59,0.00013945,2]
[353370514,1739801474761,-924.33,0.00013945,2]
[353370515,1739801474770,-1055.4,0.00013945,2]
[353370516,1739801474779,-209.42234286,0.00013945,2]
[353370517,1739801474789,-500.0,0.00013945,2]
[353370518,1739801474799,-2048.85,0.00013945,2]
[353370519,1739801474811,-1904.72,0.00013945,2]
[353370520,1739801474821,-1646.06,0.00013945,2]
[353370521,1739801474983,-1796.67,0.00013945,2]
[353370522,1739801474995,-500.0,0.00013945,2]
[353370523,1739801475005,-500.0,0.00013945,2]
[353370524,1739801475015,-1864.22,0.00013945,2]
[353370525,1739801475024,-500.0,0.00013945,2]
[353370526,1739801475034,-191.67178059,0.00013945,2]
[353370527,1739801475043,-2192.41,0.00013945,2]
[353370528,1739801475052,-1685.47,0.00013945,2]
[353370529,1739801475064,-1715.52,0.00013945,2]
[353370530,1739801475073,-500.0,0.00013945,2]
[353370531,1739801475083,-2722.1,0.00013945,2]
[353370532,1739801475092,-1921.64,0.00013945,2]
[353370533,1739801475101,-500.0,0.00013945,2]